bitfinex-derivatives/quotes_ETHF0:USTF0_20251009
["timestamp","ask_amount","ask_price","bid_price","bid_amount"]
[1760018320329,0.236,4358.5,4358.2,0.5498]
[1760018320530,0.236,4358.5,4358.1,40.8]
[1760018320835,0.41283,4358.3,4358.2,0.5498]
[1760018321038,3.2078,4359.1,4358.5,0.2235]
[1760018321328,3.2078,4359.1,4358.6,0.5498]
[1760018321329,0.41279,4358.8,4358.6,0.5498]
[1760018321528,3.2078,4359.1,4358.5,0.2235]
[1760018321529,0.41281,4358.6,4358.5,0.2235]
[1760018321927,0.41281,4358.6,4358.5,0.7733]
[1760018323031,0.64881,4358.6,4358.5,0.7733]
[1760018323234,1.20601,4358.6,4358.5,0.5498]
[1760018323536,1.20601,4358.6,4358.2,3.2078]
[1760018323537,3.2078,4358.6,4358.0,0.226]
[1760018323731,0.41284,4358.2,4358.1,0.5948]
[1760018323929,0.64884,4358.2,4358.1,0.5948]
[1760018325032,1.23234,4358.2,4357.9,0.02504743]
[1760018325335,0.41286,4358.0,4357.9,0.56544743]
[1760018326535,0.41284,4358.3,4358.1,0.5404]
[1760018326738,3.2078,4358.6,4358.1,0.5404]
[1760018327037,3.62056,4359.1,4359.0,0.7752]
[1760018327541,4.20406,4359.1,4359.0,0.5404]
[1760018328133,3.62056,4359.1,4359.0,0.5404]
[1760018328327,0.9963,4358.7,4358.6,41.3404]
[1760018328532,0.41283,4358.3,4358.2,3.2078]
[1760018328732,0.41283,4358.3,4358.2,3.7482]
[1760018330240,0.99633,4358.3,4358.2,3.2078]
[1760018330539,0.99635,4358.1,4358.0,0.5404]
[1760018330738,1.23235,4358.1,4358.0,0.5404]
[1760018330940,0.5835,4358.0,4357.9,0.02504743]
[1760018331143,0.8017,4358.0,4357.9,0.02504743]
[1760018332043,5.8017,4358.0,4357.9,0.02504743]
[1760018332230,5.8017,4358.0,4356.4,0.41301]
[1760018332231,0.41299,4356.7,4356.6,0.5404]
[1760018332434,3.62079,4356.7,4356.6,0.5404]
[1760018333140,3.62079,4356.7,4356.6,0.54222983]
[1760018334041,0.41299,4356.7,4356.6,0.54222983]
[1760018334244,0.64898,4356.8,4356.7,0.5404]
[1760018334650,3.2078,4357.7,4357.0,0.2348]
[1760018334837,0.41294,4357.2,4357.1,0.5404]
[1760018335444,0.41298,4356.9,4356.7,3.7482]
[1760018335637,0.41298,4356.9,4356.8,0.5404]
[1760018336137,0.236,4356.9,4356.8,0.5404]
[1760018336335,0.236,4356.9,4356.7,0.5404]
[1760018336538,3.2078,4357.2,4356.6,0.00182983]
[1760018336841,0.41298,4356.8,4356.7,0.5404]
[1760018337043,0.5835,4356.7,4356.6,0.00182983]
[1760018337339,1.23248,4356.8,4356.6,0.54222983]
[1760018337745,0.5835,4356.7,4356.6,0.54222983]
[1760018338146,0.5835,4356.7,4356.6,0.00182983]
[1760018338346,3.7913,4356.7,4356.6,0.00182983]
[1760018340438,3.2078,4356.7,4356.6,0.95522983]
[1760018340644,0.236,4357.0,4356.8,0.41297]
[1760018340842,0.236,4357.0,4356.6,0.41481983]
[1760018341038,0.41297,4356.9,4356.7,40.8]
[1760018341347,0.41299,4356.7,4356.6,0.54222983]
[1760018341644,0.236,4356.7,4356.6,0.54222983]
[1760018341846,0.5835,4357.1,4356.6,0.54222983]
[1760018342047,0.41298,4356.8,4356.7,0.5404]
[1760018342346,0.5835,4356.7,4356.6,0.00182983]
[1760018342549,0.8195,4356.7,4356.6,0.00182983]
[1760018342944,4.0273,4356.7,4356.6,0.00182983]
[1760018343344,0.41309,4355.6,4355.5,0.2348]
[1760018343543,0.41314,4355.2,4355.0,0.2348]
[1760018343743,0.41314,4355.2,4354.5,0.2348]
[1760018343744,0.41313,4355.2,4354.6,1.64402824]
[1760018344053,3.2078,4354.7,4354.1,0.41323]
[1760018344257,0.236,4354.6,4354.1,0.41503742]
[1760018344453,0.236,4354.6,4354.2,0.5404]
[1760018344749,0.236,4354.6,4354.1,0.00180742]
[1760018344953,0.00180606,4354.7,4354.5,0.64799]
[1760018345153,0.23780606,4354.7,4354.6,0.5404]
[1760018345353,0.00180606,4354.7,4354.6,0.5404]
[1760018345556,0.15280606,4354.7,4354.6,0.5404]
[1760018345754,0.00180606,4354.7,4354.6,0.5404]
[1760018346958,0.41321,4354.4,4354.2,0.5404]
[1760018347254,3.20960606,4354.7,4354.2,0.5404]
[1760018347255,0.236,4354.3,4354.2,0.5404]
[1760018348354,0.236,4354.3,4354.2,0.95362]
[1760018348652,0.236,4354.3,4354.2,0.5404]
[1760018349654,0.00180606,4354.7,4354.5,1.18839]
[1760018349849,0.00180606,4354.7,4354.6,3.7482]
[1760018350748,3.2078,4355.8,4354.6,8.2078]
[1760018350955,3.2078,4355.8,4355.5,0.64789]
[1760018350956,0.41308,4355.7,4355.5,0.64789]
[1760018351152,0.41308,4355.7,4355.6,0.5404]
[1760018351456,0.41309,4355.7,4355.5,41.0348]
[1760018351758,0.002776,4355.7,4355.6,0.5404]
[1760018352261,0.002776,4355.7,4354.6,0.5404]
[1760018352262,0.5835,4355.3,4354.6,0.5404]
[1760018352457,0.236,4355.2,4354.6,0.5572]
[1760018352762,0.575,4355.0,4354.5,3.2078]
[1760018352956,0.41318,4354.7,4354.5,3.2078]
[1760018353159,0.41318,4354.7,4354.5,3.765]
[1760018353160,1.22418,4354.7,4354.5,3.765]
[1760018354056,0.236,4354.7,4354.6,0.5572]
[1760018354764,0.64918,4354.7,4354.5,3.84339]
[1760018355059,0.236,4354.8,4354.5,3.4302]
[1760018355254,0.236,4355.1,4355.0,0.41314]
[1760018355457,3.62093,4355.2,4355.0,0.41314]
[1760018355458,3.62093,4355.2,4355.0,0.63554]
[1760018355661,0.236,4355.1,4355.0,0.2224]
[1760018355854,0.236,4355.1,4355.0,0.5572]
[1760018356054,0.811,4355.1,4354.5,3.4302]
[1760018356271,3.62093,4355.2,4355.1,0.5572]
[1760018356554,3.4438,4355.2,4355.1,0.5572]
[1760018356754,0.41317,4354.8,4354.6,0.5572]
[1760018356951,0.575,4354.7,4354.6,0.5572]
[1760018357156,0.41319,4354.6,4354.5,3.2078]
[1760018357455,0.41319,4354.6,4354.5,3.765]
[1760018358655,0.98819,4354.6,4354.5,3.2078]
[1760018358860,0.98819,4354.6,4354.5,3.765]
[1760018359064,0.41321,4354.3,4354.2,40.8]
[1760018359262,0.64921,4354.3,4354.2,40.8]
[1760018359560,0.64921,4354.3,4354.2,41.3572]
[1760018361053,0.64921,4354.4,4354.3,0.97041]
[1760018361362,0.98821,4354.3,4354.2,0.5572]
[1760018361564,0.41321,4354.3,4354.2,0.5572]
[1760018362158,0.64921,4354.3,4354.2,0.5572]
[1760018362558,1.03291,4354.9,4354.2,0.5572]
[1760018362758,0.41321,4354.4,4354.3,0.41321]
[1760018362958,0.236,4354.5,4354.2,0.5572]
[1760018363162,3.2078,4355.2,4354.6,0.5572]
[1760018363361,0.236,4355.1,4354.5,0.2224]
[1760018363560,0.575,4354.9,4354.6,0.5572]
[1760018364061,0.41318,4354.7,4354.3,0.41321]
[1760018364355,4.24064,4355.2,4354.6,0.5572]
[1760018364356,3.2078,4355.2,4354.6,0.5572]
[1760018364561,0.41317,4354.8,4354.5,0.63559]
[1760018364762,0.64917,4354.8,4354.7,0.41318]
[1760018364959,0.64917,4354.8,4354.5,0.2224]
[1760018364960,0.41317,4354.8,4354.6,0.41319]
[1760018365163,0.41317,4354.8,4354.7,0.5572]
[1760018365164,0.64917,4354.8,4354.7,0.5572]
[1760018365558,0.64917,4354.8,4354.7,0.97038]
[1760018365861,0.41315,4355.1,4354.5,0.2224]
[1760018366068,3.2078,4355.2,4354.5,0.2224]
[1760018366069,3.2078,4355.2,4355.1,0.5572]
[1760018366270,3.4438,4355.2,4355.1,0.5572]
[1760018366461,3.85693,4355.2,4355.1,0.5572]
[1760018367059,4.43193,4355.2,4355.1,0.5572]
[1760018367462,1.60788,4355.0,4354.0,44.2426]
[1760018367662,0.41322,4354.3,4354.0,44.65584]
[1760018367959,0.41322,4354.3,4354.2,0.5572]
[1760018368160,0.64921,4354.4,4354.3,0.5572]
[1760018368367,0.575,4355.0,4354.5,0.41319]
[1760018368664,3.2078,4355.2,4354.2,1.59025]
[1760018368966,3.2078,4355.2,4354.1,0.00180742]
[1760018368967,0.64914,4355.1,4355.0,0.7796]
[1760018369566,3.210576,4355.7,4355.0,0.7796]
[1760018369766,0.002776,4355.7,4355.6,0.97029]
[1760018369956,0.41298,4356.8,4356.6,0.5572]
[1760018370163,0.49299,4356.7,4356.6,0.5572]
[1760018370766,3.70079,4356.7,4356.6,0.5572]
[1760018370968,3.70375514,4356.7,4356.6,0.5572]
[1760018371268,0.49595514,4356.7,4356.6,0.5572]
[1760018371464,0.08296514,4356.7,4356.6,0.5572]
[1760018371867,8.86576514,4356.7,4356.1,44.0078]
[1760018372163,0.41306,4355.9,4355.8,0.5572]
[1760018372677,0.41306,4355.9,4355.8,41.3572]
[1760018372858,0.236,4356.0,4355.8,41.3572]
[1760018372859,0.64905,4356.0,4355.9,0.5572]
[1760018373263,0.41309,4355.6,4355.4,0.5572]
[1760018373467,3.4438,4355.6,4355.0,0.2224]
[1760018373664,3.4438,4355.6,4355.1,0.5572]
[1760018373866,0.41313,4355.2,4355.1,0.5572]
[1760018374472,0.41314,4355.1,4354.9,3.765]
[1760018374773,0.98814,4355.1,4354.9,3.2078]
[1760018374968,0.98814,4355.1,4355.0,0.5572]
[1760018375468,0.811,4355.1,4354.6,0.5572]
[1760018375670,3.7828,4355.6,4354.6,0.5572]
[1760018375861,0.41319,4354.6,4354.5,0.2224]
[1760018376066,0.236,4354.6,4354.5,1.1928]
[1760018376371,0.236,4354.6,4354.5,0.5572]
[1760018376574,0.236,4354.6,4354.2,3.2078]
[1760018376575,0.575,4354.5,4354.2,0.5572]
[1760018376763,0.575,4354.5,4354.1,0.00180742]
[1760018376764,0.575,4354.2,4354.1,0.00180742]
[1760018376963,0.811,4354.2,4354.1,0.00180742]
[1760018377169,0.74381532,4354.2,4354.1,0.00180742]
[1760018377365,0.97981532,4354.2,4354.1,0.00180742]
[1760018378866,0.98833,4353.1,4353.0,0.01307242]
[1760018379068,4.43213,4353.1,4353.0,0.01307242]
[1760018379359,4.43213,4353.1,4351.4,1.64402824]
[1760018379360,1.03345,4352.6,4351.6,0.5572]
[1760018379564,0.575,4352.0,4351.2,0.5572]
[1760018379790,0.236,4351.9,4351.2,0.00270399]
[1760018379972,0.57789534,4352.0,4351.6,0.41347]
[1760018380162,0.00289534,4352.0,4351.5,0.63587]
[1760018380367,0.00289534,4352.0,4351.9,3.765]
[1760018380974,0.00289534,4352.0,4351.9,8.765]
[1760018381172,3.2078,4353.2,4352.9,0.41334]
[1760018381374,3.2078,4353.2,4352.6,0.5572]
[1760018381576,0.236,4353.1,4352.5,0.2224]
[1760018381973,0.98834,4353.0,4352.6,0.5572]
[1760018382168,0.00168277,4353.0,4352.9,0.5572]
[1760018382380,0.23768277,4353.0,4352.9,0.5572]
[1760018382570,0.00168277,4353.0,4352.9,0.5572]
[1760018383270,0.41337,4352.7,4352.6,3.7806]
[1760018383571,0.41337,4352.7,4352.1,0.236]
[1760018383572,0.41339,4352.5,4352.1,3.2078]
[1760018383770,0.4134,4352.4,4352.2,0.5728]
[1760018383976,0.41342,4352.1,4352.0,0.7952]
[1760018384278,0.236,4352.1,4352.0,0.7952]
[1760018385376,0.64942,4352.1,4352.0,0.7952]
[1760018385878,0.64942,4352.1,4351.6,3.2078]
[1760018385879,0.41347,4351.6,4351.5,0.5533]
[1760018386174,0.41349,4351.4,4351.3,0.5533]
[1760018387279,0.98429,4351.4,4351.2,0.00270399]
[1760018387474,0.5708,4351.3,4351.2,0.00270399]
[1760018387680,3.7786,4351.3,4351.2,0.00270399]
[1760018388176,8.7786,4351.3,4351.2,0.00270399]
[1760018388480,4.0146,4351.3,4351.2,0.00270399]
[1760018388675,9.0146,4351.3,4351.2,0.00270399]
[1760018388981,4.0146,4351.3,4351.2,0.00270399]
[1760018390478,0.41355,4350.8,4350.7,0.47266251]
[1760018390676,1.22035,4350.8,4350.7,0.47266251]
[1760018391179,0.7879,4350.5,4349.8,0.5533]
[1760018391377,0.41363,4350.0,4349.8,0.55552455]
[1760018391569,0.41361,4350.2,4349.8,0.00222455]
[1760018391873,3.2078,4350.8,4349.8,0.00222455]
[1760018391874,3.2078,4350.8,4350.0,0.2244]
[1760018392089,0.236,4350.7,4350.3,0.5533]
[1760018392277,0.41359,4350.4,4350.1,0.5533]
[1760018392473,1.03383,4351.0,4349.9,0.5533]
[1760018392474,0.5708,4350.1,4349.9,0.5533]
[1760018392678,1.22043,4350.0,4349.8,0.00222455]
[1760018393074,0.98443,4350.0,4349.8,0.00222455]
[1760018393284,0.8068,4349.9,4349.8,0.00222455]
[1760018393574,0.23849238,4349.9,4349.8,0.55552455]
[1760018393779,0.00249238,4349.9,4349.8,0.55552455]
[1760018394077,0.00249238,4349.9,4349.8,3.76332455]
[1760018395183,0.41612238,4349.9,4349.8,3.76332455]
[1760018395480,0.98692238,4349.9,4349.8,3.76332455]
[1760018395681,0.00249238,4349.9,4349.8,3.76332455]
[1760018397071,0.00249238,4349.9,4349.8,8.76332455]
[1760018397273,0.0716,4350.8,4350.6,0.41357]
[1760018397480,0.0716,4350.8,4350.7,44.5611]
[1760018397879,3.2078,4352.8,4350.8,0.5533]
[1760018398085,0.41338,4352.6,4352.5,0.7777]
[1760018398285,0.41338,4352.6,4351.6,0.5533]
[1760018398286,0.5708,4352.2,4351.6,0.5533]
[1760018398581,0.00218882,4352.6,4351.7,0.41345]
[1760018398582,0.41343,4352.1,4351.7,0.41345]
[1760018398786,0.41339,4352.5,4352.1,0.41342]
[1760018399085,0.00218882,4352.6,4352.5,0.7777]
[1760018399487,0.00218882,4352.6,4352.5,0.5533]
[1760018400180,0.00218882,4352.6,4352.5,0.7777]
[1760018400383,0.41341,4352.3,4352.0,0.2244]
[1760018400584,0.57298882,4352.6,4352.0,0.2244]
[1760018400585,0.41342,4352.2,4352.1,0.5533]
[1760018400782,0.41342,4352.2,4351.1,3.7611]
[1760018400783,0.5708,4351.8,4351.1,3.7611]
[1760018400979,0.5708,4351.8,4350.7,40.8]
[1760018400980,0.41353,4351.0,4350.9,0.5533]
[1760018401179,0.5708,4350.8,4349.9,3.2078]
[1760018401376,0.5708,4350.6,4349.9,3.7611]
[1760018401584,0.5708,4350.1,4349.9,0.5533]
[1760018401796,0.41363,4349.9,4349.8,0.00222455]
[1760018402089,0.41363,4350.0,4349.8,0.55552455]
[1760018402389,0.5708,4349.9,4349.8,0.00222455]
[1760018403182,0.5708,4349.9,4348.1,3.2078]
[1760018403183,0.41375,4348.7,4348.1,3.2078]
[1760018403376,0.41376,4348.6,4348.2,0.5533]
[1760018403582,0.236,4348.9,4348.2,0.5533]
[1760018403583,0.64973,4348.9,4348.2,0.5533]
[1760018403782,0.236,4348.9,4348.2,0.5533]
[1760018403982,0.236,4348.8,4348.6,3.2078]
[1760018404182,0.236,4349.1,4348.9,0.5533]
[1760018404376,0.236,4349.1,4349.0,0.7777]
[1760018404377,0.00194459,4349.1,4349.0,0.7777]
[1760018405075,0.5708,4349.0,4348.9,0.00202787]
[1760018405483,5.7879,4349.0,4348.9,0.00202787]
[1760018405789,6.0239,4349.0,4348.9,0.00202787]
[1760018406382,0.5708,4348.9,4347.9,0.02299987]
[1760018406590,0.5708,4348.2,4347.9,0.02299987]
[1760018406884,0.236,4348.1,4347.9,0.57629987]
[1760018407091,0.5708,4348.0,4347.9,0.02299987]
[1760018407286,0.5708,4348.0,4347.9,0.02517509]
[1760018407792,0.5708,4347.9,4346.8,3.7611]
[1760018408082,0.236,4348.7,4347.7,0.5533]
[1760018408285,3.2078,4349.0,4348.5,0.2244]
[1760018408486,0.00194459,4349.1,4349.0,0.7777]
[1760018408684,0.00194459,4349.1,4349.0,0.5533]
[1760018408895,0.5708,4349.0,4348.4,3.7611]
[1760018409189,0.57274459,4349.1,4348.5,40.8]
[1760018409386,3.2078,4348.7,4348.5,40.8]
[1760018409581,0.2171,4348.5,4348.4,0.00196744]
[1760018409785,0.5708,4347.7,4346.5,0.2244]
[1760018410087,3.4438,4347.6,4346.6,41.76724]
[1760018410390,3.4438,4347.6,4345.8,0.5533]
[1760018410391,0.7879,4347.0,4345.8,0.5533]
[1760018410592,0.5708,4346.4,4345.5,3.2078]
[1760018410884,0.5708,4346.3,4345.5,3.20954066]
[1760018411086,0.236,4346.2,4345.5,3.20954066]
[1760018411289,0.5708,4346.1,4345.5,3.20954066]
[1760018411489,0.5708,4346.9,4345.6,0.5533]
[1760018411683,0.5708,4346.9,4345.5,3.43394066]
[1760018411684,0.236,4346.8,4346.1,0.41399]
[1760018411989,0.236,4346.8,4345.7,3.2078]
[1760018412188,0.236,4347.0,4346.5,0.2244]
[1760018412492,0.236,4346.9,4346.2,0.41398]
[1760018412681,3.7638,4347.1,4346.6,0.41395]
[1760018412682,0.236,4346.8,4346.6,0.41395]
[1760018412882,0.556,4347.9,4346.6,0.5626]
[1760018413082,0.236,4347.9,4347.3,0.41388]
[1760018413384,3.2078,4347.4,4346.4,0.5626]
[1760018413682,0.236,4347.3,4347.1,0.4139]
[1760018413883,3.7638,4348.6,4347.6,0.5626]
[1760018414081,0.236,4348.5,4347.4,0.41387]
[1760018414281,0.236,4348.5,4347.9,0.97642]
[1760018414485,0.7731,4349.0,4347.9,0.5626]
[1760018414680,0.236,4348.4,4348.1,0.4138]
[1760018414882,3.20974459,4349.1,4348.6,0.5626]
[1760018415084,3.20974459,4349.1,4349.0,0.97632]
[1760018415085,0.00194459,4349.1,4349.0,0.97632]
[1760018415287,0.00194459,4349.1,4349.0,0.5626]
[1760018415484,0.00194459,4349.1,4348.6,0.00161268]
[1760018415485,0.556,4348.7,4348.6,0.00161268]
[1760018415683,0.556,4348.7,4347.3,3.2078]
[1760018415889,0.41381,4348.1,4347.1,0.5626]
[1760018416085,3.2078,4347.6,4346.9,0.5626]
[1760018416291,0.236,4347.5,4346.9,0.5626]
[1760018416587,0.64986,4347.5,4346.9,0.5626]
[1760018416787,0.64986,4347.5,4346.9,0.56426506]
[1760018416788,0.236,4347.5,4346.9,0.56426506]
[1760018417486,3.2078,4347.7,4347.0,40.8]
[1760018417688,0.746,4347.8,4347.0,41.2139]
[1760018418096,0.41389,4347.2,4346.9,0.56426506]
[1760018418392,0.556,4347.0,4346.9,0.00166506]
[1760018419085,0.96991,4347.0,4346.9,0.00166506]
[1760018419286,5.2102,4347.0,4346.2,3.2078]
[1760018419595,0.556,4346.3,4346.2,3.2078]
[1760018420289,0.236,4346.4,4346.3,0.5626]
[1760018420687,0.96997,4346.3,4346.2,3.20946657]
[1760018420883,0.96997,4346.3,4346.2,0.00166657]
[1760018421092,0.97002,4345.8,4345.7,3.2078]
[1760018421285,0.792,4345.8,4345.7,3.2078]
[1760018421490,0.41406,4345.5,4345.2,3.2078]
[1760018421685,0.41408,4345.2,4344.7,3.2078]
[1760018421901,0.41408,4345.2,4343.0,0.2193]
[1760018421902,0.41417,4344.3,4342.9,0.02302635]
[1760018422193,0.00249125,4344.3,4343.4,3.2078]
[1760018422397,3.2078,4345.3,4344.2,0.5626]
[1760018422691,0.199,4345.1,4344.8,0.5626]
[1760018422894,0.199,4345.1,4344.3,0.41416]
[1760018423097,3.2078,4344.8,4344.2,0.41417]
[1760018423395,0.556,4344.2,4343.6,0.5626]
[1760018423595,0.00297622,4344.8,4342.8,3.2078]
[1760018423596,3.2078,4343.7,4342.8,3.2078]
[1760018423801,3.2078,4343.7,4343.0,0.5626]
[1760018423992,3.2078,4343.7,4343.2,0.41427]
[1760018424194,3.4438,4344.0,4343.4,0.2193]
[1760018424495,3.4438,4344.0,4343.3,3.7704]
[1760018425088,0.236,4344.0,4343.4,0.2193]
[1760018425290,0.236,4344.5,4343.9,0.5626]
[1760018425595,3.2078,4344.1,4343.8,0.5626]
[1760018426092,3.4438,4344.1,4343.2,0.5626]
[1760018426394,3.4438,4344.1,4342.9,0.58800573]
[1760018426395,3.7638,4343.4,4342.9,0.58800573]
[1760018426599,0.556,4343.2,4342.9,0.02540573]
[1760018426803,0.97028,4343.1,4342.9,0.02540573]
[1760018426987,0.556,4343.1,4342.9,0.02540573]
[1760018427293,1.18049,4343.0,4342.9,0.02540573]
[1760018427500,1.18049,4343.0,4341.0,3.43101632]
[1760018427501,0.556,4342.9,4341.2,0.41446]
[1760018427791,3.7638,4341.7,4341.1,40.8]
[1760018428002,3.2078,4341.2,4341.1,40.8]
[1760018428196,3.2078,4341.2,4341.0,0.41839632]
[1760018428197,0.2102,4342.2,4341.0,0.00391632]
[1760018428396,0.2102,4343.0,4341.0,0.00391632]
[1760018428397,3.2078,4341.8,4341.4,0.5626]
[1760018428594,0.9704,4341.8,4341.0,0.00561644]
[1760018428791,0.9704,4341.8,4341.1,40.8]
[1760018428991,0.556,4341.6,4341.0,0.00561644]
[1760018429191,2.94778259,4341.7,4341.2,0.5626]
[1760018429499,0.556,4341.3,4341.0,0.00561644]
[1760018429698,0.556,4341.1,4341.0,0.00561644]
[1760018430100,0.41449,4340.9,4340.4,0.47266251]
[1760018430292,0.2102,4341.0,4340.4,0.47266251]
[1760018430293,0.556,4341.0,4340.4,0.47266251]
[1760018430595,0.237,4340.9,4340.4,0.47266251]
[1760018431201,0.237,4340.9,4340.4,0.47480438]
[1760018431689,0.556,4340.8,4340.4,0.47480438]
[1760018431893,3.7638,4341.4,4340.5,0.5626]
[1760018432095,3.2078,4341.4,4341.3,0.5626]
[1760018432289,3.4448,4341.4,4340.9,0.41448]
[1760018432490,3.4448,4341.4,4340.8,3.2078]
[1760018432695,3.7638,4341.4,4341.2,0.41446]
[1760018432900,0.237,4341.3,4341.2,0.5626]
[1760018433292,0.237,4341.3,4340.8,3.2078]
[1760018433497,0.556,4341.1,4340.8,3.2078]
[1760018433694,0.556,4341.1,4340.5,0.5626]
[1760018433695,0.41449,4341.0,4340.4,0.47480438]
[1760018433997,0.41453,4340.6,4340.4,0.47480438]
[1760018434190,0.793,4340.5,4340.4,0.47480438]
[1760018434503,0.2102,4340.4,4339.5,3.2078]
[1760018434702,0.556,4339.6,4339.0,3.2078]
[1760018434994,0.556,4339.4,4339.0,3.2078]
[1760018435206,0.237,4339.5,4339.2,0.41465]
[1760018435497,3.2078,4339.8,4339.2,0.00297988]
[1760018435702,3.2078,4340.3,4340.2,0.41456]
[1760018435997,0.237,4340.3,4340.2,0.97716]
[1760018436198,3.2078,4341.4,4340.3,1.03637]
[1760018436394,3.2078,4341.4,4341.2,0.97706]
[1760018436596,0.237,4341.3,4341.2,0.41446]
[1760018436801,0.237,4341.3,4341.2,0.97706]
[1760018437495,0.237,4341.3,4341.2,4.18486]
[1760018437699,0.237,4341.3,4341.2,44.5704]
[1760018437899,0.21246993,4342.2,4342.1,0.97698]
[1760018437900,0.00226993,4342.2,4342.1,0.97698]
[1760018438301,0.62446,4343.4,4342.1,0.97698]
[1760018438302,3.2078,4343.1,4343.0,0.5626]
[1760018438603,3.2078,4343.1,4342.9,0.41429]
[1760018438910,0.97032,4342.7,4341.7,0.5626]
[1760018439104,3.85913,4342.6,4341.7,0.5626]
[1760018439402,0.556,4341.8,4341.7,0.00180818]
[1760018439612,0.41448,4341.1,4340.4,0.5626]
[1760018439802,0.237,4341.0,4340.4,0.5626]
[1760018440002,0.556,4340.9,4340.5,41.21453]
[1760018440296,0.556,4340.9,4340.5,41.3626]
[1760018440502,0.793,4341.0,4340.5,0.41452]
[1760018440804,0.556,4340.9,4340.1,3.2078]
[1760018441009,0.237,4341.0,4340.9,0.41449]
[1760018441310,3.4448,4341.7,4341.5,0.41442]
[1760018441602,0.556,4341.6,4340.7,3.2078]
[1760018441996,0.556,4341.6,4340.0,0.2193]
[1760018441997,3.2078,4341.2,4340.9,0.41449]
[1760018442197,0.237,4341.1,4340.7,0.41451]
[1760018442402,0.556,4341.0,4340.0,3.2078]
[1760018442600,0.556,4341.0,4337.7,2.07395]
[1760018442601,0.5479,4340.3,4339.5,3.2078]
[1760018442808,0.7849,4340.2,4339.5,3.62242]
[1760018443003,0.7849,4340.2,4340.0,0.41457]
[1760018443307,0.7849,4340.2,4338.8,3.2078]
[1760018443500,0.41462,4339.6,4338.8,3.2078]
[1760018443698,0.7849,4339.5,4338.8,3.2078]
[1760018443903,0.7849,4339.5,4338.3,3.2078]
[1760018443904,0.41466,4339.1,4338.3,3.2078]
[1760018444109,0.237,4339.0,4338.3,3.2078]
[1760018444303,0.5479,4338.9,4338.3,3.2078]
[1760018444502,0.5325,4338.9,4338.3,3.21023832]
[1760018444703,0.7695,4338.8,4338.4,0.41473]
[1760018444998,0.237,4338.7,4338.3,3.21023832]
[1760018445203,0.237,4338.7,4338.3,0.00243832]
[1760018445204,0.5325,4338.6,4338.3,0.00243832]
[1760018445407,3.2078,4338.8,4338.3,0.00243832]
[1760018445599,0.237,4338.5,4338.3,0.41716832]
[1760018445800,0.237,4338.5,4338.4,0.5417]
[1760018446004,0.237,4338.5,4338.3,0.41716832]
[1760018446206,0.5325,4338.4,4338.3,0.00243832]
[1760018446608,3.62249,4338.8,4338.6,0.4147]
[1760018446609,3.2078,4338.8,4338.6,0.4147]
[1760018446802,0.237,4338.7,4338.6,0.4147]
[1760018447208,0.237,4338.7,4338.3,0.54413832]
[1760018447410,0.237,4338.7,4338.5,0.41471]
[1760018447610,0.237,4338.7,4338.6,0.5417]
[1760018447909,1.86e-06,4339.0,4338.9,0.95638]
[1760018448109,3.2078,4340.0,4339.9,0.41459]
[1760018448410,3.2078,4340.0,4339.9,41.75629]
[1760018448602,3.2078,4340.0,4339.9,46.75629]
[1760018448802,0.5325,4341.2,4341.0,0.41448]
[1760018449005,3.2078,4341.6,4340.2,1.03639]
[1760018449006,3.2078,4341.6,4340.7,1.03628]
[1760018449212,0.00183982,4341.6,4341.4,0.41444]
[1760018449408,0.237,4342.0,4341.5,0.5417]
[1760018449610,0.5325,4342.0,4341.4,0.00263203]
[1760018449811,0.237,4342.1,4341.9,0.41439]
[1760018450009,0.237,4342.1,4341.5,0.5417]
[1760018450204,0.237,4342.1,4342.0,0.41438]
[1760018450412,0.237,4342.1,4342.0,0.95608]
[1760018450413,0.23883424,4342.1,4342.0,0.95608]
[1760018450630,0.5325,4342.0,4341.4,0.00263203]
[1760018450906,0.65321424,4342.1,4341.4,0.00263203]
[1760018450907,0.5325,4341.5,4341.4,0.00263203]
[1760018451209,0.2151,4341.4,4340.6,3.2078]
[1760018451409,0.2151,4341.4,4340.0,3.62237]
[1760018451410,0.5325,4340.6,4340.0,3.62237]
[1760018451606,0.5325,4340.4,4340.0,3.2078]
[1760018451810,0.5325,4340.1,4340.0,3.2078]
[1760018452206,0.5325,4340.1,4340.0,0.00257662]
[1760018452516,0.237,4340.1,4340.0,0.00257662]
[1760018452808,0.237,4340.1,4340.0,0.41714662]
[1760018453014,0.237,4340.1,4340.0,0.95884662]
[1760018453213,3.2078,4341.3,4340.2,1.0364]
[1760018453415,3.2078,4342.0,4341.8,0.4144]
[1760018453712,0.237,4341.9,4341.7,0.41441]
[1760018453907,0.237,4341.9,4341.8,0.5417]
[1760018454115,3.2078,4342.0,4341.9,0.41439]
[1760018454414,0.00183424,4342.1,4342.0,0.5417]
[1760018454747,39.1538,4343.5,4343.4,0.41425]
[1760018454917,39.3908,4343.5,4343.3,0.41426]
[1760018455111,36.183,4343.5,4343.4,3.7495]
[1760018455313,3.2078,4344.3,4344.2,0.41417]
[1760018455618,3.4448,4344.3,4344.2,0.41417]
[1760018455815,35.945,4345.3,4344.1,1.03545]
[1760018455816,36.4775,4345.3,4344.1,1.03545]
[1760018456005,1.8032279,4345.2,4345.1,0.5417]
[1760018456216,0.00278457,4345.2,4344.8,3.2078]
[1760018456411,0.237,4345.1,4344.1,0.00273445]
[1760018456612,0.41414,4344.6,4344.1,0.00273445]